bitfinex/quotes_ETHUSD_20260102
["timestamp","ask_amount","ask_price","bid_price","bid_amount"]
[1767363907563,2.67634714,3031.7,3030.5,2.69496097]
[1767363907758,0.001,3031.7,3030.5,2.69496097]
[1767363908091,0.001,3031.7,3030.6,2.69496097]
[1767363908386,0.001,3031.7,3030.8,2.69496097]
[1767363908684,2.67534714,3031.6,3030.5,2.69496097]
[1767363909260,2.67534714,3031.5,3029.7,2.69496097]
[1767363909463,2.67534714,3031.5,3029.9,2.69496097]
[1767363909759,2.67534714,3031.5,3029.8,4.16648549]
[1767363909760,2.67534714,3031.3,3030.1,2.69496097]
[1767363909957,2.67534714,3031.2,3030.1,2.69496097]
[1767363913004,2.67534714,3031.2,3030.0,0.88872298]
[1767363913005,2.67534714,3031.2,3030.3,2.69496097]
[1767363913170,2.67534714,3031.8,3030.3,2.69496097]
[1767363913375,2.67634714,3031.7,3030.5,2.69496097]
[1767363913582,2.67634714,3031.7,3030.7,2.69496097]
[1767363913807,0.001,3031.9,3030.6,0.29448658]
[1767363913808,0.001,3031.9,3030.9,2.69496097]
[1767363914013,2.67534714,3032.3,3031.2,2.69496097]
[1767363914303,3.29847248,3032.7,3031.2,2.69496097]
[1767363914304,5.97386892,3032.6,3031.2,2.69496097]
[1767363915011,2.67534714,3032.5,3031.2,2.69496097]
[1767363915213,3.27284187,3032.5,3031.4,2.69496097]
[1767363915705,2.67534714,3032.3,3031.3,2.69496097]
[1767363915913,5.97386466,3032.6,3031.3,2.69496097]
[1767363916090,2.67634714,3032.6,3031.3,2.69496097]
[1767363916287,0.001,3032.6,3031.4,2.69496097]
[1767363916612,0.001,3032.6,3031.6,2.69496097]
[1767363916910,2.67634714,3032.5,3031.7,2.69496097]
[1767363919339,0.001,3032.5,3031.8,2.69496097]
[1767363919622,0.001,3032.8,3031.8,2.69496097]
[1767363919819,0.001,3032.8,3032.0,2.69496097]
[1767363920930,0.001,3033.0,3032.2,2.69496097]
[1767363921114,0.001,3033.1,3032.2,2.69496097]
[1767363922127,0.001,3033.2,3032.3,3.29782673]
[1767363922304,0.001,3033.2,3032.4,2.69496097]
[1767363922502,0.001,3033.4,3032.2,3.29790016]
[1767363922503,0.001,3033.4,3032.6,2.69496097]
[1767363922707,0.001,3033.4,3032.8,2.69496097]
[1767363923599,2.67534714,3033.3,3032.0,2.69496097]
[1767363923800,0.001,3033.4,3032.2,2.69496097]
[1767363924011,0.001,3033.4,3031.3,9.01217884]
[1767363924012,0.001,3033.4,3032.3,0.866]
[1767363924190,2.67534714,3033.2,3031.5,4.728929]
[1767363924390,2.67534714,3033.2,3031.7,2.69496097]
[1767363924595,0.32975346,3033.3,3032.3,2.69496097]
[1767363924824,0.001,3033.4,3032.3,2.69496097]
[1767363925027,0.001,3033.4,3032.4,2.69496097]
[1767363925203,0.001,3033.6,3032.5,2.69496097]
[1767363925405,0.001,3034.0,3032.8,2.69496097]
[1767363925605,0.001,3034.0,3033.0,2.69496097]
[1767363925804,2.67534714,3034.5,3033.2,2.69496097]
[1767363926018,2.90884541,3034.4,3033.2,2.69496097]
[1767363926219,2.91702327,3034.2,3032.8,2.92196595]
[1767363926417,2.91702327,3034.0,3031.9,2.92196595]
[1767363926626,2.92516479,3033.9,3032.1,6.21993748]
[1767363926832,2.92516479,3033.7,3032.5,2.92196595]
[1767363927244,2.92516479,3033.7,3032.2,0.70849375]
[1767363927535,0.09512251,3034.2,3032.2,2.92196595]
[1767363927536,2.92516479,3033.5,3032.2,2.92196595]
[1767363927738,2.92926831,3033.3,3032.3,2.92196595]
[1767363928047,2.92926831,3033.2,3032.3,2.92196595]
[1767363928333,4.16168724,3033.4,3032.4,2.92196595]
[1767363928537,6.22584788,3033.5,3032.4,2.92196595]
[1767363928705,2.92926831,3033.5,3032.4,2.92196595]
[1767363928906,5.45860601,3034.2,3032.3,0.29447047]
[1767363928907,2.93720883,3034.0,3032.6,2.92196595]
[1767363929518,2.94505586,3033.9,3032.6,2.92196595]
[1767363929719,2.94505586,3033.7,3032.6,2.92196595]
[1767363929935,2.94505586,3033.5,3032.6,2.92196595]
[1767363930352,3.29608934,3033.9,3032.6,2.92196595]
[1767363930587,2.95281582,3033.6,3032.6,2.92196595]
[1767363931340,0.001,3033.7,3032.7,2.95493986]
[1767363931542,0.001,3033.7,3032.9,2.92196595]
[1767363933011,2.96904879,3033.7,3032.9,2.92196595]
[1767363933549,2.96804879,3033.6,3032.4,2.92196595]
[1767363934139,0.001,3033.7,3032.5,3.29752736]
[1767363934438,0.001,3033.7,3032.7,2.92196595]
[1767363934651,2.97554471,3034.0,3032.6,3.29747177]
[1767363934652,2.98293018,3034.3,3032.8,1.48694377]
[1767363934819,7.14360184,3034.3,3032.9,2.92196595]
[1767363935155,7.14360184,3034.3,3033.1,2.92196595]
[1767363935449,3.84793018,3034.3,3033.1,2.92196595]
[1767363935609,2.99124087,3034.8,3033.3,2.92196595]
[1767363935813,2.99124087,3034.6,3033.3,2.92196595]
[1767363936043,2.99124087,3034.6,3033.3,3.78696595]
[1767363936254,2.99124087,3034.6,3033.4,2.92196595]
[1767363936463,2.99124087,3034.6,3033.5,2.92196595]
[1767363936754,2.99124087,3034.6,3033.7,2.92196595]
[1767363937250,2.99456645,3034.8,3033.7,2.92196595]
[1767363939055,0.001,3035.0,3033.8,0.865]
[1767363939350,0.001,3035.0,3033.9,2.92196595]
[1767363939641,0.001,3035.0,3033.8,0.865]
[1767363939642,0.001,3035.0,3034.1,2.92196595]
[1767363939843,3.01585973,3034.9,3034.1,2.92196595]
[1767363940140,0.001,3035.0,3034.1,2.92196595]
[1767363940824,0.001,3035.0,3034.2,0.865]
[1767363940825,3.02379303,3035.0,3034.2,0.865]
[1767363941045,3.02379303,3035.0,3034.2,3.78696595]
[1767363941242,3.02379303,3035.0,3034.3,2.92196595]
[1767363941447,0.001,3035.0,3034.3,2.92196595]
[1767363941648,2.93065039,3035.3,3034.3,2.92196595]
[1767363942146,2.93065039,3035.3,3033.9,2.92196595]
[1767363942452,2.93065039,3035.1,3033.9,2.92196595]
[1767363942643,2.94165346,3034.6,3032.9,2.92196595]
[1767363942815,2.94165346,3034.4,3033.2,2.92196595]
[1767363943016,2.94165346,3034.4,3033.4,2.92196595]
[1767363943731,12.04839183,3035.0,3033.4,2.92196595]
[1767363943932,2.94843614,3034.8,3033.5,2.92196595]
[1767363944242,2.94843614,3034.6,3033.5,2.92196595]
[1767363944560,0.38134361,3034.7,3032.6,2.92196595]
[1767363944561,2.95514793,3034.4,3032.6,2.92196595]
[1767363944716,2.95514793,3034.2,3032.8,2.92196595]
[1767363945530,2.95514793,3034.2,3032.9,0.03297173]
[1767363945729,2.95514793,3034.2,3033.0,2.92196595]
[1767363945959,3.29543582,3034.5,3033.1,3.25042927]
[1767363946158,2.96183176,3034.3,3033.1,3.21745972]
[1767363946667,2.96840111,3034.2,3033.1,3.21745972]
[1767363948555,7.14185272,3034.4,3033.1,3.21745972]
[1767363948757,2.98128405,3034.3,3033.1,3.21745972]
[1767363948962,4.02501441,3034.3,3033.3,2.92196595]
[1767363949122,3.29535813,3034.6,3033.3,2.92196595]
[1767363949123,2.98128405,3034.5,3033.3,2.92196595]
[1767363949318,3.84628405,3034.5,3033.3,2.92196595]
[1767363949822,0.865,3034.5,3033.3,2.92196595]
[1767363950148,0.38134361,3034.7,3033.5,2.92196595]
[1767363950149,3.29528753,3034.7,3033.5,2.92196595]
[1767363950452,2.98761589,3034.6,3033.5,2.92196595]
[1767363950622,2.99387841,3034.5,3033.5,2.92196595]
[1767363951228,2.99387841,3034.3,3033.2,3.33021192]
[1767363951523,2.99387841,3034.3,3033.3,3.01747539]
[1767363951723,2.97472788,3034.7,3033.5,3.01747539]
[1767363951939,2.97472788,3034.7,3033.5,3.29650265]
[1767363952151,2.97472788,3034.6,3033.6,3.01747539]
[1767363952653,2.97472788,3034.5,3033.6,3.01747539]
[1767363953028,2.97572788,3034.5,3033.6,3.01747539]
[1767363953228,0.001,3034.5,3033.6,3.38644842]
[1767363953631,2.97472788,3034.4,3033.6,3.38644842]
[1767363954656,0.001,3034.5,3033.6,3.38644842]
[1767363955457,2.97572788,3034.5,3033.6,3.38644842]
[1767363956262,0.001,3034.5,3033.6,3.38644842]
[1767363956460,0.001,3034.5,3033.8,3.04139832]
[1767363956830,3.0014801,3034.4,3033.4,3.04139832]
[1767363957062,3.0014801,3034.2,3032.7,3.04139832]
[1767363957234,3.0014801,3034.2,3032.8,3.04139832]
[1767363957660,3.0014801,3034.2,3032.8,6.33858658]
[1767363957840,3.38812811,3034.2,3033.0,3.04139832]
[1767363958165,3.0014801,3034.4,3033.1,3.04139832]
[1767363958354,3.0014801,3034.4,3033.2,3.04139832]
[1767363958555,3.0014801,3034.4,3033.2,3.0743668]
[1767363958867,6.29704319,3034.4,3033.2,3.0743668]
[1767363959067,6.29704319,3034.4,3033.2,3.04139832]
[1767363959068,3.0014801,3034.3,3033.2,3.04139832]
[1767363959370,0.62970432,3034.2,3033.2,3.348835]
[1767363959862,3.0014801,3034.3,3033.4,3.04139832]
[1767363961342,3.0014801,3034.3,3033.4,3.07436462]
[1767363961543,3.0014801,3034.3,3033.4,3.04139832]
[1767363961736,3.0014801,3034.3,3033.4,3.07436461]
[1767363961936,0.001,3034.4,3033.4,3.07436461]
[1767363962147,3.0024801,3034.4,3033.6,3.04139832]
[1767363962549,0.001,3034.4,3033.6,3.04139832]
[1767363962750,0.001,3034.5,3033.5,3.04139832]
[1767363963076,3.0014801,3035.0,3033.7,3.04139832]
[1767363963263,3.0014801,3035.0,3033.7,3.07436136]
[1767363963468,3.0014801,3034.8,3033.7,3.43533446]
[1767363963657,3.0014801,3034.7,3033.7,3.43533446]
[1767363963970,3.0014801,3034.7,3033.2,0.30743668]
[1767363964170,3.0014801,3034.6,3033.3,3.04139832]
[1767363964541,3.09660261,3034.6,3032.9,3.04139832]
[1767363964742,3.0014801,3034.2,3032.9,3.04139832]
[1767363964959,3.0014801,3034.0,3032.9,3.04139832]
[1767363965349,3.0014801,3034.0,3033.0,3.04139832]
[1767363965548,3.0014801,3034.0,3033.2,3.04139832]
[1767363966567,3.29558187,3034.4,3033.2,3.04139832]
[1767363966772,3.8664801,3034.4,3033.2,3.04139832]
[1767363967570,7.162027,3034.4,3033.2,3.04139832]
[1767363967759,3.0014801,3034.3,3033.2,3.04139832]
[1767363967968,0.7162027,3034.2,3033.2,3.67523945]
[1767363968150,3.7176828,3034.2,3033.2,3.67523945]
[1767363968355,3.7176828,3034.2,3033.3,3.04339832]
[1767363970349,3.0014801,3034.7,3033.3,3.04339832]
[1767363970553,0.95911121,3034.9,3033.5,3.04139832]
[1767363970750,3.0014801,3034.9,3033.7,3.04139832]
[1767363971952,3.0014801,3034.7,3033.7,3.04139832]
[1767363972681,4.15990937,3035.0,3033.7,3.04139832]
[1767363972866,0.865,3034.9,3033.8,3.04139832]
[1767363973071,3.0014801,3035.0,3034.0,3.04139832]
[1767363974172,0.865,3034.9,3033.4,3.04139832]
[1767363974480,3.0014801,3034.8,3033.4,3.04139832]
[1767363974784,0.865,3034.7,3033.4,3.04139832]
[1767363974951,3.0014801,3034.6,3033.6,3.04139832]
[1767363975761,3.8664801,3034.6,3033.6,3.04139832]
[1767363975999,3.0014801,3034.5,3033.6,3.04139832]
[1767363976156,3.0014801,3034.3,3033.6,3.04139832]
[1767363976555,3.0014801,3034.3,3033.3,3.04339832]
[1767363976795,3.0014801,3034.3,3033.4,3.67542092]
[1767363977307,3.0014801,3034.3,3033.3,0.002]
[1767363977852,3.0014801,3034.3,3033.3,3.04339832]
[1767363978359,3.0014801,3034.1,3033.3,3.04339832]
[1767363978689,3.0014801,3034.1,3033.3,0.002]
[1767363978894,3.0014801,3034.1,3033.4,3.04139832]
[1767363979057,0.865,3034.2,3033.4,3.04139832]
[1767363979257,4.58269868,3034.2,3033.4,3.04139832]
[1767363979454,4.58269868,3034.2,3033.5,0.0227155]
[1767363979661,6.2969182,3034.5,3033.5,3.04139832]
[1767363979883,3.8664801,3034.4,3033.5,3.04139832]
[1767363980758,3.0014801,3034.3,3033.5,3.04139832]
[1767363981787,3.0014801,3034.3,3033.3,0.002]
[1767363982159,3.0014801,3034.2,3033.3,3.04339832]
[1767363982489,0.865,3034.1,3033.3,3.34773815]
[1767363982889,3.0014801,3034.2,3033.3,3.34773815]
[1767363984009,3.0014801,3034.1,3033.3,0.002]
[1767363984217,3.0014801,3034.0,3032.7,3.04139832]
[1767363984501,3.0014801,3033.7,3032.7,3.04139832]
[1767363986774,0.865,3033.6,3032.7,3.04139832]
[1767363987475,0.865,3033.7,3032.7,3.04139832]
[1767363987678,3.05978484,3033.8,3032.9,3.03987037]
[1767363987872,6.34551882,3034.3,3032.9,3.03987037]
[1767363988074,0.865,3034.2,3032.9,3.03987037]
[1767363988404,3.04978483,3034.3,3032.9,3.03987037]
[1767363988700,3.04978483,3034.3,3033.1,3.03987037]
[1767363988870,3.04978483,3034.3,3033.3,3.03987037]
[1767363990301,6.33305232,3034.6,3033.3,3.03987037]
[1767363990609,3.90266546,3034.6,3033.3,3.29671093]
[1767363990824,3.90266546,3034.6,3033.4,3.03987037]
[1767363991014,3.03022291,3034.5,3033.4,3.03987037]
[1767363991326,3.03022291,3034.5,3033.6,3.03987037]
[1767363992712,3.01762117,3035.1,3033.7,3.03987037]
[1767363992916,3.01762117,3035.2,3033.8,3.03987037]
[1767363994700,3.00525073,3035.0,3033.8,3.03987037]
[1767363994897,3.00525073,3034.9,3033.9,3.34385741]
[1767363995234,3.00625073,3035.3,3033.9,3.34385741]
[1767363995436,0.001,3035.3,3034.1,3.03987037]
[1767363995650,0.001,3035.3,3034.3,3.03987037]
[1767363995795,3.00017854,3035.3,3034.3,3.03987037]
[1767363996122,3.00017854,3035.3,3034.4,3.43035741]
[1767363996835,3.00017854,3035.3,3034.5,3.03987037]
[1767363997141,3.00017854,3035.3,3034.6,3.03987037]
[1767363997434,0.866,3035.7,3034.5,0.865]
[1767363997435,2.9966857,3035.6,3034.9,3.03987037]
[1767363997602,2.8318576,3035.6,3034.9,3.03987037]
[1767363997803,2.8318576,3035.6,3034.6,3.03987037]
[1767363998133,2.8318576,3035.6,3034.7,0.39048704]
[1767363998431,0.001,3035.2,3034.7,0.39048704]
[1767363998594,0.001,3035.2,3034.7,3.43035741]
[1767363998799,0.001,3035.2,3034.9,3.03987037]
[1767363999123,2.80360777,3035.7,3034.9,3.03987037]
[1767363999296,2.80360777,3035.7,3034.9,4.04192812]
[1767364000510,2.80360777,3035.7,3034.9,1.00205775]
[1767364000835,2.80360777,3035.7,3034.6,6.33519369]
[1767364001395,2.80360777,3035.7,3034.6,3.03987037]
[1767364001639,2.78368689,3035.5,3034.6,3.03987037]
[1767364002303,2.78368689,3035.5,3034.7,3.03987037]
[1767364002910,2.78368689,3035.5,3034.7,6.33508815]
[1767364003112,2.78368689,3035.5,3034.8,3.03987037]
[1767364003529,2.78368689,3035.5,3034.4,3.03987037]
[1767364003722,2.78368689,3035.5,3034.5,3.03987037]
[1767364003917,2.78368689,3035.5,3033.9,3.29605278]
[1767364003918,2.78368689,3035.5,3034.1,3.29586302]
[1767364004119,2.78368689,3035.5,3033.9,3.29607484]
[1767364004120,2.78368689,3035.5,3034.2,3.03987037]
[1767364004433,2.7729847,3035.3,3034.3,3.34385741]
[1767364004805,2.76773209,3035.2,3034.3,3.03987037]
[1767364005535,2.76773209,3035.2,3034.4,3.03987037]
[1767364005939,2.76355003,3035.7,3034.5,3.03987037]
[1767364006735,2.76355003,3035.7,3034.6,3.03987037]
[1767364007039,0.001,3035.2,3034.6,3.03987037]
[1767364007347,0.001,3035.2,3034.7,4.00592646]
[1767364007661,0.001,3035.2,3034.8,3.03987037]
[1767364008742,0.001,3035.2,3034.8,6.33495821]
[1767364009814,0.001,3035.2,3034.9,3.03987037]
[1767364010512,2.59356131,3035.5,3034.9,3.03987037]
[1767364010933,2.59356131,3035.5,3034.9,6.3348621]
[1767364011129,2.59356131,3035.5,3034.9,3.03987037]
[1767364011911,2.59356131,3035.5,3034.9,6.33486458]
[1767364012111,2.59356131,3035.5,3034.9,7.29787214]
[1767364012614,0.001,3035.7,3035.0,3.03987037]
[1767364012809,2.56541106,3035.7,3035.0,3.03987037]
[1767364013042,2.56541106,3035.7,3035.5,0.01779169]
[1767364013340,2.56541106,3035.7,3035.0,6.33474181]
[1767364013546,2.56541106,3035.7,3035.1,3.03987037]
[1767364013745,0.001,3035.8,3035.2,3.29461252]
[1767364013947,0.001,3036.2,3035.3,3.29452787]
[1767364014115,2.54504204,3036.1,3035.2,3.03987037]
[1767364015144,2.54405453,3036.0,3034.9,3.03987037]
[1767364015346,0.001,3035.7,3035.0,3.03987037]
[1767364015642,0.001,3035.7,3035.2,3.03987037]
[1767364016016,0.001,3035.7,3035.3,2.97542537]
[1767364016226,0.001,3036.2,3035.3,2.97542537]
[1767364016429,0.001,3036.2,3035.3,3.60572625]
[1767364017045,0.001,3036.2,3035.4,2.97542537]
[1767364017229,2.52945221,3036.2,3035.4,2.97542537]
[1767364019028,0.001,3036.2,3035.4,2.97542537]
[1767364019240,2.51758114,3036.2,3035.4,2.97542537]
[1767364019555,2.76933925,3036.2,3035.4,2.97542537]
[1767364020251,2.76933925,3036.2,3034.9,2.97542537]
[1767364020557,2.76933925,3036.2,3035.1,2.97542537]
[1767364020930,0.25275811,3036.2,3035.1,2.97542537]
[1767364021131,0.001,3036.2,3035.2,2.97542537]
[1767364021335,2.50926696,3036.2,3035.2,2.97542537]
[1767364021768,0.001,3036.2,3035.2,2.97542537]
[1767364021968,2.50521223,3036.5,3035.1,2.97542537]
[1767364021969,0.001,3036.5,3035.1,2.97542537]
[1767364022256,0.001,3036.2,3035.1,2.97542537]
[1767364022436,0.001,3036.2,3035.3,2.97542537]
[1767364023328,0.001,3036.2,3035.5,2.97542537]
[1767364023524,0.001,3036.2,3035.7,2.97542537]
[1767364023863,2.50116589,3036.5,3035.7,2.97542537]
[1767364023864,0.001,3036.5,3035.7,2.97542537]
[1767364024944,2.49420299,3036.9,3035.7,2.97542537]
[1767364024945,2.49620299,3036.9,3035.7,2.97542537]
[1767364025247,0.001,3037.0,3036.1,2.97542537]
[1767364025447,0.001,3037.0,3036.3,2.97542537]
[1767364025753,2.49329479,3037.5,3036.3,2.97542537]
[1767364025942,0.001,3037.5,3036.3,2.97542537]
[1767364026541,0.001,3037.5,3036.2,0.864]
[1767364026542,2.94496898,3037.4,3036.5,2.97542537]
[1767364026726,2.94496898,3037.4,3035.9,2.97542537]
[1767364026927,2.94496898,3037.4,3036.1,2.97542537]
[1767364027335,2.94162379,3037.2,3036.1,2.97542537]
[1767364028477,2.94183748,3037.1,3035.8,4.22666215]
[1767364028649,2.93856571,3036.9,3035.8,2.97542537]
[1767364029074,0.38058375,3037.0,3035.8,2.97542537]
[1767364029257,3.80256571,3037.2,3036.0,2.97542537]
[1767364029569,2.93856571,3037.2,3036.1,2.97542537]
[1767364029866,4.15631362,3037.4,3036.1,2.97542537]
[1767364030046,6.22847706,3037.5,3036.1,2.97542537]
[1767364030568,0.001,3037.5,3036.3,2.97542537]
[1767364031145,0.001,3037.3,3036.5,2.97542537]
[1767364031377,3.29156336,3038.1,3036.5,2.97542537]
[1767364031378,0.66245634,3040.5,3036.6,2.97542537]
[1767364031578,2.92850028,3038.2,3036.9,2.97542537]
[1767364031880,2.92850028,3038.2,3037.1,2.97542537]
[1767364032173,0.001,3038.6,3037.1,2.97542537]
[1767364032384,0.001,3038.6,3037.4,2.97542537]
[1767364032539,0.001,3038.6,3037.6,2.97542537]
[1767364032540,2.92535926,3038.6,3037.6,2.97542537]
[1767364032740,2.92535926,3038.6,3037.8,2.97542537]
[1767364032936,2.92535926,3038.6,3037.7,0.864]
[1767364032937,3.21789519,3038.6,3037.9,2.97542537]
[1767364033161,0.29353593,3038.6,3037.9,2.97542537]
[1767364033367,0.001,3038.6,3037.9,2.97542537]
[1767364034942,0.001,3038.6,3038.0,2.97542537]
[1767364035540,0.001,3038.6,3037.1,3.29261297]
[1767364035541,2.9158753,3038.6,3037.6,0.864]
[1767364035739,2.91188753,3038.0,3036.6,2.97542537]
[1767364036054,2.91188753,3037.8,3036.6,2.97542537]
[1767364036248,0.864,3038.2,3036.7,2.97542537]
[1767364036762,2.91188753,3038.1,3036.7,2.97542537]
[1767364037472,2.90893259,3038.3,3036.8,2.97542537]
[1767364038446,0.001,3038.0,3036.8,2.97542537]
[1767364038666,2.90146064,3037.9,3036.8,2.97542537]
[1767364038870,2.90146064,3037.7,3036.8,2.97542537]
[1767364039097,2.90146064,3037.7,3036.5,3.83942537]
[1767364039271,2.90146064,3037.7,3036.6,2.97542537]
[1767364039575,3.29196431,3037.7,3036.6,2.97542537]
[1767364039776,0.29024606,3037.8,3036.8,2.97542537]
[1767364039982,3.29266661,3038.0,3037.0,2.97542537]
[1767364040153,0.001,3038.0,3037.0,2.97542537]
[1767364040345,0.001,3038.0,3037.2,2.97542537]
[1767364042651,2.884297,3038.0,3037.2,2.97542537]
[1767364043153,0.001,3038.0,3037.2,2.97542537]
[1767364043466,0.001,3038.0,3037.4,2.97542537]
[1767364043971,0.001,3038.6,3037.5,2.97542537]
[1767364044753,0.001,3039.3,3037.6,30.0]
[1767364044754,6.16613482,3039.3,3037.6,30.0]
[1767364044948,0.001,3039.3,3037.9,2.97542537]
[1767364045148,0.001,3039.3,3038.1,2.97542537]
[1767364045375,0.001,3039.3,3038.3,2.97542537]
[1767364045556,0.001,3039.8,3038.5,2.97542537]
[1767364045761,0.001,3039.8,3038.6,2.97542537]
[1767364047082,0.001,3039.8,3038.6,3.00000128]
[1767364047284,2.77974021,3039.8,3038.6,3.00000128]
[1767364047462,0.27797402,3039.7,3038.8,3.00000128]
[1767364047979,9.63631231,3039.7,3038.8,3.00000128]
[1767364048157,6.34651327,3039.7,3038.8,3.00000128]
[1767364048472,2.77874021,3039.6,3038.8,3.00000128]
[1767364048686,2.77874021,3038.8,3037.4,3.00000128]
[1767364048853,2.77874021,3038.8,3037.6,3.00000128]
[1767364049677,6.58176192,3038.7,3037.6,3.00000128]
[1767364049857,2.77874021,3038.6,3037.1,3.00000128]
[1767364050055,2.77874021,3038.6,3037.1,6.29260429]
[1767364050250,0.93605021,3038.5,3037.3,3.00000128]
[1767364050455,0.93605021,3038.5,3037.4,3.00000128]
[1767364050656,2.77874021,3038.4,3037.1,3.00000128]
[1767364050881,2.77874021,3038.4,3037.3,3.00000128]
[1767364051857,6.06994818,3038.4,3037.3,3.00000128]
[1767364052070,3.80843909,3038.4,3037.5,3.00000128]
[1767364052362,2.77874021,3038.3,3037.2,3.00000128]
[1767364052789,2.77874021,3038.1,3037.2,3.00000128]
[1767364053249,2.77874021,3038.1,3036.6,3.00000128]
[1767364053659,0.864,3038.0,3036.6,3.00000128]
[1767364053856,6.58371188,3037.8,3036.6,3.00000128]
[1767364054060,6.58371188,3037.8,3036.7,0.30020013]
[1767364054061,3.4371114,3037.7,3036.7,0.30020013]
[1767364054400,3.4371114,3037.7,3036.7,3.30020141]
[1767364055263,3.4371114,3037.7,3036.9,3.00000128]
[1767364055989,6.72911256,3037.7,3036.9,3.00000128]
[1767364056378,7.24237351,3037.7,3036.9,3.00000128]
[1767364056592,7.24237351,3037.7,3036.1,3.29365174]
[1767364056593,2.77874021,3037.5,3035.7,3.00000128]
[1767364056812,2.77874021,3037.5,3036.0,3.00000128]
[1767364056971,2.5329587,3037.3,3036.0,3.00000128]
[1767364057163,0.81063735,3037.6,3036.2,3.00000128]
[1767364057493,0.81063735,3037.6,3036.1,3.9230064]
[1767364057494,1.67463735,3037.6,3036.3,3.00000128]
[1767364057662,1.67463735,3037.6,3036.4,3.00000128]
[1767364057857,3.29228945,3037.4,3036.4,3.00000128]
[1767364058181,4.10275209,3037.6,3036.4,3.00000128]
[1767364058377,0.82588024,3037.5,3036.6,3.00000128]
[1767364059595,2.53120475,3037.4,3036.3,3.00000128]
[1767364060089,3.29239785,3037.3,3036.3,3.00000128]
[1767364060291,2.52863692,3037.2,3036.3,3.00000128]
[1767364060472,2.52863692,3037.2,3036.1,3.62938525]
[1767364060667,0.91134326,3037.1,3036.1,3.62938525]
[1767364060878,3.39011522,3037.3,3036.1,3.62938525]
[1767364061888,2.52357626,3037.2,3036.1,3.62938525]
[1767364062087,0.82588024,3037.5,3036.2,3.00000128]
[1767364062088,0.864,3037.4,3036.2,3.00000128]
[1767364062288,4.15629239,3037.4,3036.2,3.00000128]
[1767364062675,2.52456635,3037.3,3036.5,0.002]
[1767364062869,2.52456635,3037.1,3036.2,3.00000128]
[1767364063470,2.52456635,3037.1,3035.9,3.00000128]
[1767364064182,5.81728313,3037.1,3035.9,3.00000128]
[1767364065686,3.29271678,3037.1,3035.9,3.00000128]
[1767364065894,2.51535028,3036.9,3036.0,3.38640141]
[1767364066090,2.51535028,3036.9,3036.0,3.00000128]
[1767364066285,2.51535028,3036.7,3036.0,3.00000128]
[1767364066500,0.864,3036.7,3035.6,0.002]
[1767364066682,2.51535028,3036.6,3035.6,0.002]
[1767364068515,2.51405056,3036.4,3035.6,0.002]
[1767364068819,2.5151771,3036.2,3035.4,3.00000128]
[1767364068999,2.5131771,3036.1,3035.4,3.00000128]
[1767364069200,2.5131771,3036.1,3035.3,0.002]
[1767364069721,2.5131771,3036.1,3035.3,3.00200128]
[1767364070009,0.864,3036.4,3035.4,3.00000128]
[1767364070188,0.33747746,3036.3,3035.4,3.00000128]
[1767364070983,2.50839001,3036.2,3035.4,3.00000128]
[1767364072479,2.50839001,3036.2,3035.3,0.002]
[1767364073109,2.50839001,3036.2,3035.3,2.89170747]
[1767364074113,3.29285783,3036.9,3035.3,2.89170747]
[1767364074114,2.49597417,3036.5,3035.3,2.89170747]
[1767364074314,2.74557159,3036.5,3035.5,2.88970747]
[1767364075585,2.49157069,3036.4,3035.5,2.88970747]
[1767364076915,0.24959742,3036.5,3035.5,2.88970747]
[1767364077294,3.3512805,3036.6,3035.5,2.88970747]
[1767364077688,2.4872805,3036.6,3035.5,3.2943448]
[1767364077893,2.4872805,3036.6,3035.6,2.88106911]
[1767364080301,2.48101221,3037.0,3035.6,2.88106911]
[1767364080504,2.48101221,3037.5,3035.8,2.88106911]
[1767364080699,2.47897291,3037.3,3036.0,2.88106911]
[1767364081424,2.47897291,3037.3,3036.2,2.88106911]
[1767364081925,2.48045395,3037.2,3036.2,2.88106911]
[1767364083309,2.48045395,3037.2,3036.4,2.88106911]
[1767364083510,2.48045395,3037.2,3036.6,2.88106911]
[1767364084119,2.47641455,3037.6,3036.6,2.88106911]
[1767364084329,0.001,3037.7,3036.6,2.88106911]
[1767364085302,0.001,3037.7,3036.8,2.88106911]
[1767364087339,2.46731243,3037.5,3036.5,2.88106911]
[1767364089412,0.001,3037.7,3036.7,2.88106911]
[1767364091550,0.001,3037.7,3036.9,2.88106911]
[1767364091712,2.46176548,3038.1,3036.9,2.88106911]
[1767364092922,2.46176548,3038.1,3037.0,2.88106911]
[1767364093122,2.46176548,3038.1,3037.2,2.88106911]
[1767364093537,2.45836435,3038.4,3037.3,2.88106911]
[1767364094144,2.45836435,3038.4,3037.1,3.16917602]
[1767364094145,2.45560906,3038.3,3037.1,3.16917602]
[1767364094951,2.45560906,3038.3,3037.1,2.88106911]
[1767364095339,2.45560906,3038.3,3036.9,0.864]
[1767364095647,2.45386989,3038.1,3036.9,3.74506911]
[1767364095814,3.29142255,3038.2,3036.9,2.88106911]
[1767364095815,2.44883066,3037.9,3036.9,2.88106911]
[1767364097022,2.44883066,3037.9,3036.5,4.15726241]
[1767364097023,2.44883066,3037.9,3036.6,2.88106911]
[1767364097239,2.44720537,3037.7,3036.6,2.88106911]
[1767364097635,2.44720537,3037.5,3036.6,2.88106911]
[1767364097837,0.864,3037.7,3036.8,2.88106911]
[1767364098037,2.44556545,3037.6,3036.8,2.88106911]
[1767364098934,2.44556545,3037.6,3036.5,2.88106911]
[1767364099118,2.44390965,3037.4,3036.5,2.88106911]
[1767364100451,2.44390965,3037.4,3036.1,6.17471555]
[1767364100658,2.44227334,3037.3,3035.8,2.88106911]
[1767364100860,2.44064868,3037.1,3035.8,2.88106911]
[1767364101020,2.44064868,3036.9,3035.8,3.58499565]
[1767364101419,2.44064868,3036.9,3035.8,2.88106911]
[1767364101637,2.43904724,3036.7,3035.8,2.88106911]
[1767364103063,2.43745948,3036.9,3036.0,2.88106911]
[1767364103392,1.19446487,3037.0,3036.0,2.88106911]
[1767364103744,3.29993079,3037.4,3036.2,2.88106911]
[1767364103943,2.43593079,3037.3,3036.2,2.88106911]
[1767364104350,2.43593079,3037.3,3036.0,0.864]
[1767364104851,2.43593079,3037.3,3036.1,2.88106911]
[1767364105052,2.43593079,3037.3,3036.3,2.88106911]
[1767364105941,4.48718523,3037.5,3036.3,2.88106911]
[1767364106154,6.9152882,3037.5,3036.3,2.88106911]
[1767364106464,3.62305952,3037.5,3036.4,2.98486894]
[1767364106959,2.42289903,3037.7,3036.5,2.78852072]
[1767364108039,2.42289903,3037.7,3036.6,2.78852072]
[1767364108447,0.001,3037.7,3036.6,2.78852072]
[1767364110177,0.001,3037.7,3036.8,2.78852072]
[1767364110473,2.41886198,3037.7,3036.5,3.65252072]